{"text_format":"1","workbook":"xlsx","n_sheets":2,"sheets":["분석기","감성사전"],"not_rendered":{"charts":0,"images":0,"macros":1,"external_links":0,"defined_names":0,"comments":0,"pivot_tables":0},"unopened":[],"bounds":{"document_bytes":16777216,"sheet_cells":100000,"rows_first":2000,"rows_last":500,"rows_between":2000,"halvings":0,"cell_chars":16384,"cell_head_chars":4096},"cells_cut":0,"cells_raw":0,"read":"whole","date_system":"1900"}

{"sheet":"분석기","index":0,"n_rows":68,"n_cols":14,"rows_kept":68,"cut":false,"hidden":false,"merged":[[6,13,6,14],[7,13,8,14],[8,1,18,7]]}
[]
[null,"인공지능수학 - 분류와 예측 - 인공지능의 텍스트 분류1"]
[]
[null,"감정분석기"]
[null,"양양고 남궁연"]
[]
[null,null,null,null,null,null,null,null,null,"추출","긍정점수","부정점수",null,"감성점수"]
[null,"아래 네모 칸에 분석을 원하는 글을 붙여 넣고 분석하기 버튼을 누르세요 ~",null,null,null,null,null,null,null,"안녕하세요",{"$f":"IFERROR(INDEX(감성사전!D:D,MATCH(J8,감성사전!C:C,0)),\"\")","v":""},{"$f":"IFERROR(INDEX(감성사전!B:B,MATCH(J8,감성사전!A:A,0)),\"\")","v":""},null,{"$f":"SUM(K8:K10000)-SUM(L8:L10000)","v":0}]
[null,"안녕하세요? 인공지능 수학 초보 남궁연 이라고 합니다.",null,null,null,null,null,null,null,"인공지능",{"$f":"IFERROR(INDEX(감성사전!D:D,MATCH(J9,감성사전!C:C,0)),\"\")","v":""},{"$f":"IFERROR(INDEX(감성사전!B:B,MATCH(J9,감성사전!A:A,0)),\"\")","v":""}]
[null,null,null,null,null,null,null,null,null,"수학",{"$f":"IFERROR(INDEX(감성사전!D:D,MATCH(J10,감성사전!C:C,0)),\"\")","v":""},{"$f":"IFERROR(INDEX(감성사전!B:B,MATCH(J10,감성사전!A:A,0)),\"\")","v":""}]
[null,null,null,null,null,null,null,null,null,"초보",{"$f":"IFERROR(INDEX(감성사전!D:D,MATCH(J11,감성사전!C:C,0)),\"\")","v":""},{"$f":"IFERROR(INDEX(감성사전!B:B,MATCH(J11,감성사전!A:A,0)),\"\")","v":""}]
[null,null,null,null,null,null,null,null,null,"남궁연",{"$f":"IFERROR(INDEX(감성사전!D:D,MATCH(J12,감성사전!C:C,0)),\"\")","v":""},{"$f":"IFERROR(INDEX(감성사전!B:B,MATCH(J12,감성사전!A:A,0)),\"\")","v":""}]
[null,null,null,null,null,null,null,null,null,"이라고",{"$f":"IFERROR(INDEX(감성사전!D:D,MATCH(J13,감성사전!C:C,0)),\"\")","v":""},{"$f":"IFERROR(INDEX(감성사전!B:B,MATCH(J13,감성사전!A:A,0)),\"\")","v":""}]
[null,null,null,null,null,null,null,null,null,"합니다",{"$f":"IFERROR(INDEX(감성사전!D:D,MATCH(J14,감성사전!C:C,0)),\"\")","v":""},{"$f":"IFERROR(INDEX(감성사전!B:B,MATCH(J14,감성사전!A:A,0)),\"\")","v":""}]
[null,null,null,null,null,null,null,null,null,null,{"$f":"IFERROR(INDEX(감성사전!D:D,MATCH(J15,감성사전!C:C,0)),\"\")","v":""},{"$f":"IFERROR(INDEX(감성사전!B:B,MATCH(J15,감성사전!A:A,0)),\"\")","v":""}]
[null,null,null,null,null,null,null,null,null,null,{"$f":"IFERROR(INDEX(감성사전!D:D,MATCH(J16,감성사전!C:C,0)),\"\")","v":""},{"$f":"IFERROR(INDEX(감성사전!B:B,MATCH(J16,감성사전!A:A,0)),\"\")","v":""}]
[null,null,null,null,null,null,null,null,null,null,{"$f":"IFERROR(INDEX(감성사전!D:D,MATCH(J17,감성사전!C:C,0)),\"\")","v":""},{"$f":"IFERROR(INDEX(감성사전!B:B,MATCH(J17,감성사전!A:A,0)),\"\")","v":""}]
[null,null,null,null,null,null,null,null,null,null,{"$f":"IFERROR(INDEX(감성사전!D:D,MATCH(J18,감성사전!C:C,0)),\"\")","v":""},{"$f":"IFERROR(INDEX(감성사전!B:B,MATCH(J18,감성사전!A:A,0)),\"\")","v":""}]
[null,null,null,null,null,null,null,null,null,null,{"$f":"IFERROR(INDEX(감성사전!D:D,MATCH(J19,감성사전!C:C,0)),\"\")","v":""},{"$f":"IFERROR(INDEX(감성사전!B:B,MATCH(J19,감성사전!A:A,0)),\"\")","v":""}]
[null,null,null,null,null,null,null,null,null,null,{"$f":"IFERROR(INDEX(감성사전!D:D,MATCH(J20,감성사전!C:C,0)),\"\")","v":""},{"$f":"IFERROR(INDEX(감성사전!B:B,MATCH(J20,감성사전!A:A,0)),\"\")","v":""}]
[null,null,null,null,null,null,null,null,null,null,{"$f":"IFERROR(INDEX(감성사전!D:D,MATCH(J21,감성사전!C:C,0)),\"\")","v":""},{"$f":"IFERROR(INDEX(감성사전!B:B,MATCH(J21,감성사전!A:A,0)),\"\")","v":""}]
[null,null,null,null,null,null,null,null,null,null,{"$f":"IFERROR(INDEX(감성사전!D:D,MATCH(J22,감성사전!C:C,0)),\"\")","v":""},{"$f":"IFERROR(INDEX(감성사전!B:B,MATCH(J22,감성사전!A:A,0)),\"\")","v":""}]
[null,null,null,null,null,null,null,null,null,null,{"$f":"IFERROR(INDEX(감성사전!D:D,MATCH(J23,감성사전!C:C,0)),\"\")","v":""},{"$f":"IFERROR(INDEX(감성사전!B:B,MATCH(J23,감성사전!A:A,0)),\"\")","v":""}]
[null,null,null,null,null,null,null,null,null,null,{"$f":"IFERROR(INDEX(감성사전!D:D,MATCH(J24,감성사전!C:C,0)),\"\")","v":""},{"$f":"IFERROR(INDEX(감성사전!B:B,MATCH(J24,감성사전!A:A,0)),\"\")","v":""}]
[null,null,null,null,null,null,null,null,null,null,{"$f":"IFERROR(INDEX(감성사전!D:D,MATCH(J25,감성사전!C:C,0)),\"\")","v":""},{"$f":"IFERROR(INDEX(감성사전!B:B,MATCH(J25,감성사전!A:A,0)),\"\")","v":""}]
[null,null,null,null,null,null,null,null,null,null,{"$f":"IFERROR(INDEX(감성사전!D:D,MATCH(J26,감성사전!C:C,0)),\"\")","v":""},{"$f":"IFERROR(INDEX(감성사전!B:B,MATCH(J26,감성사전!A:A,0)),\"\")","v":""}]
[null,null,null,null,null,null,null,null,null,null,{"$f":"IFERROR(INDEX(감성사전!D:D,MATCH(J27,감성사전!C:C,0)),\"\")","v":""},{"$f":"IFERROR(INDEX(감성사전!B:B,MATCH(J27,감성사전!A:A,0)),\"\")","v":""}]
[null,null,null,null,null,null,null,null,null,null,{"$f":"IFERROR(INDEX(감성사전!D:D,MATCH(J28,감성사전!C:C,0)),\"\")","v":""},{"$f":"IFERROR(INDEX(감성사전!B:B,MATCH(J28,감성사전!A:A,0)),\"\")","v":""}]
[null,null,null,null,null,null,null,null,null,null,{"$f":"IFERROR(INDEX(감성사전!D:D,MATCH(J29,감성사전!C:C,0)),\"\")","v":""},{"$f":"IFERROR(INDEX(감성사전!B:B,MATCH(J29,감성사전!A:A,0)),\"\")","v":""}]
[null,null,null,null,null,null,null,null,null,null,{"$f":"IFERROR(INDEX(감성사전!D:D,MATCH(J30,감성사전!C:C,0)),\"\")","v":""},{"$f":"IFERROR(INDEX(감성사전!B:B,MATCH(J30,감성사전!A:A,0)),\"\")","v":""}]
[null,null,null,null,null,null,null,null,null,null,{"$f":"IFERROR(INDEX(감성사전!D:D,MATCH(J31,감성사전!C:C,0)),\"\")","v":""},{"$f":"IFERROR(INDEX(감성사전!B:B,MATCH(J31,감성사전!A:A,0)),\"\")","v":""}]
[null,null,null,null,null,null,null,null,null,null,{"$f":"IFERROR(INDEX(감성사전!D:D,MATCH(J32,감성사전!C:C,0)),\"\")","v":""},{"$f":"IFERROR(INDEX(감성사전!B:B,MATCH(J32,감성사전!A:A,0)),\"\")","v":""}]
[null,null,null,null,null,null,null,null,null,null,{"$f":"IFERROR(INDEX(감성사전!D:D,MATCH(J33,감성사전!C:C,0)),\"\")","v":""},{"$f":"IFERROR(INDEX(감성사전!B:B,MATCH(J33,감성사전!A:A,0)),\"\")","v":""}]
[null,null,null,null,null,null,null,null,null,null,{"$f":"IFERROR(INDEX(감성사전!D:D,MATCH(J34,감성사전!C:C,0)),\"\")","v":""},{"$f":"IFERROR(INDEX(감성사전!B:B,MATCH(J34,감성사전!A:A,0)),\"\")","v":""}]
[null,null,null,null,null,null,null,null,null,null,{"$f":"IFERROR(INDEX(감성사전!D:D,MATCH(J35,감성사전!C:C,0)),\"\")","v":""},{"$f":"IFERROR(INDEX(감성사전!B:B,MATCH(J35,감성사전!A:A,0)),\"\")","v":""}]
[null,null,null,null,null,null,null,null,null,null,{"$f":"IFERROR(INDEX(감성사전!D:D,MATCH(J36,감성사전!C:C,0)),\"\")","v":""},{"$f":"IFERROR(INDEX(감성사전!B:B,MATCH(J36,감성사전!A:A,0)),\"\")","v":""}]
[null,null,null,null,null,null,null,null,null,null,{"$f":"IFERROR(INDEX(감성사전!D:D,MATCH(J37,감성사전!C:C,0)),\"\")","v":""},{"$f":"IFERROR(INDEX(감성사전!B:B,MATCH(J37,감성사전!A:A,0)),\"\")","v":""}]
[null,null,null,null,null,null,null,null,null,null,{"$f":"IFERROR(INDEX(감성사전!D:D,MATCH(J38,감성사전!C:C,0)),\"\")","v":""},{"$f":"IFERROR(INDEX(감성사전!B:B,MATCH(J38,감성사전!A:A,0)),\"\")","v":""}]
[null,null,null,null,null,null,null,null,null,null,{"$f":"IFERROR(INDEX(감성사전!D:D,MATCH(J39,감성사전!C:C,0)),\"\")","v":""},{"$f":"IFERROR(INDEX(감성사전!B:B,MATCH(J39,감성사전!A:A,0)),\"\")","v":""}]
[null,null,null,null,null,null,null,null,null,null,{"$f":"IFERROR(INDEX(감성사전!D:D,MATCH(J40,감성사전!C:C,0)),\"\")","v":""},{"$f":"IFERROR(INDEX(감성사전!B:B,MATCH(J40,감성사전!A:A,0)),\"\")","v":""}]
[null,null,null,null,null,null,null,null,null,null,{"$f":"IFERROR(INDEX(감성사전!D:D,MATCH(J41,감성사전!C:C,0)),\"\")","v":""},{"$f":"IFERROR(INDEX(감성사전!B:B,MATCH(J41,감성사전!A:A,0)),\"\")","v":""}]
[null,null,null,null,null,null,null,null,null,null,{"$f":"IFERROR(INDEX(감성사전!D:D,MATCH(J42,감성사전!C:C,0)),\"\")","v":""},{"$f":"IFERROR(INDEX(감성사전!B:B,MATCH(J42,감성사전!A:A,0)),\"\")","v":""}]
[null,null,null,null,null,null,null,null,null,null,{"$f":"IFERROR(INDEX(감성사전!D:D,MATCH(J43,감성사전!C:C,0)),\"\")","v":""},{"$f":"IFERROR(INDEX(감성사전!B:B,MATCH(J43,감성사전!A:A,0)),\"\")","v":""}]
[null,null,null,null,null,null,null,null,null,null,{"$f":"IFERROR(INDEX(감성사전!D:D,MATCH(J44,감성사전!C:C,0)),\"\")","v":""},{"$f":"IFERROR(INDEX(감성사전!B:B,MATCH(J44,감성사전!A:A,0)),\"\")","v":""}]
[null,null,null,null,null,null,null,null,null,null,{"$f":"IFERROR(INDEX(감성사전!D:D,MATCH(J45,감성사전!C:C,0)),\"\")","v":""},{"$f":"IFERROR(INDEX(감성사전!B:B,MATCH(J45,감성사전!A:A,0)),\"\")","v":""}]
[null,null,null,null,null,null,null,null,null,null,{"$f":"IFERROR(INDEX(감성사전!D:D,MATCH(J46,감성사전!C:C,0)),\"\")","v":""},{"$f":"IFERROR(INDEX(감성사전!B:B,MATCH(J46,감성사전!A:A,0)),\"\")","v":""}]
[null,null,null,null,null,null,null,null,null,null,{"$f":"IFERROR(INDEX(감성사전!D:D,MATCH(J47,감성사전!C:C,0)),\"\")","v":""},{"$f":"IFERROR(INDEX(감성사전!B:B,MATCH(J47,감성사전!A:A,0)),\"\")","v":""}]
[null,null,null,null,null,null,null,null,null,null,{"$f":"IFERROR(INDEX(감성사전!D:D,MATCH(J48,감성사전!C:C,0)),\"\")","v":""},{"$f":"IFERROR(INDEX(감성사전!B:B,MATCH(J48,감성사전!A:A,0)),\"\")","v":""}]
[null,null,null,null,null,null,null,null,null,null,{"$f":"IFERROR(INDEX(감성사전!D:D,MATCH(J49,감성사전!C:C,0)),\"\")","v":""},{"$f":"IFERROR(INDEX(감성사전!B:B,MATCH(J49,감성사전!A:A,0)),\"\")","v":""}]
[null,null,null,null,null,null,null,null,null,null,{"$f":"IFERROR(INDEX(감성사전!D:D,MATCH(J50,감성사전!C:C,0)),\"\")","v":""},{"$f":"IFERROR(INDEX(감성사전!B:B,MATCH(J50,감성사전!A:A,0)),\"\")","v":""}]
[null,null,null,null,null,null,null,null,null,null,{"$f":"IFERROR(INDEX(감성사전!D:D,MATCH(J51,감성사전!C:C,0)),\"\")","v":""},{"$f":"IFERROR(INDEX(감성사전!B:B,MATCH(J51,감성사전!A:A,0)),\"\")","v":""}]
[null,null,null,null,null,null,null,null,null,null,{"$f":"IFERROR(INDEX(감성사전!D:D,MATCH(J52,감성사전!C:C,0)),\"\")","v":""},{"$f":"IFERROR(INDEX(감성사전!B:B,MATCH(J52,감성사전!A:A,0)),\"\")","v":""}]
[null,null,null,null,null,null,null,null,null,null,{"$f":"IFERROR(INDEX(감성사전!D:D,MATCH(J53,감성사전!C:C,0)),\"\")","v":""},{"$f":"IFERROR(INDEX(감성사전!B:B,MATCH(J53,감성사전!A:A,0)),\"\")","v":""}]
[null,null,null,null,null,null,null,null,null,null,{"$f":"IFERROR(INDEX(감성사전!D:D,MATCH(J54,감성사전!C:C,0)),\"\")","v":""},{"$f":"IFERROR(INDEX(감성사전!B:B,MATCH(J54,감성사전!A:A,0)),\"\")","v":""}]
[null,null,null,null,null,null,null,null,null,null,{"$f":"IFERROR(INDEX(감성사전!D:D,MATCH(J55,감성사전!C:C,0)),\"\")","v":""},{"$f":"IFERROR(INDEX(감성사전!B:B,MATCH(J55,감성사전!A:A,0)),\"\")","v":""}]
[null,null,null,null,null,null,null,null,null,null,{"$f":"IFERROR(INDEX(감성사전!D:D,MATCH(J56,감성사전!C:C,0)),\"\")","v":""},{"$f":"IFERROR(INDEX(감성사전!B:B,MATCH(J56,감성사전!A:A,0)),\"\")","v":""}]
[null,null,null,null,null,null,null,null,null,null,{"$f":"IFERROR(INDEX(감성사전!D:D,MATCH(J57,감성사전!C:C,0)),\"\")","v":""},{"$f":"IFERROR(INDEX(감성사전!B:B,MATCH(J57,감성사전!A:A,0)),\"\")","v":""}]
[null,null,null,null,null,null,null,null,null,null,{"$f":"IFERROR(INDEX(감성사전!D:D,MATCH(J58,감성사전!C:C,0)),\"\")","v":""},{"$f":"IFERROR(INDEX(감성사전!B:B,MATCH(J58,감성사전!A:A,0)),\"\")","v":""}]
[null,null,null,null,null,null,null,null,null,null,{"$f":"IFERROR(INDEX(감성사전!D:D,MATCH(J59,감성사전!C:C,0)),\"\")","v":""},{"$f":"IFERROR(INDEX(감성사전!B:B,MATCH(J59,감성사전!A:A,0)),\"\")","v":""}]
[null,null,null,null,null,null,null,null,null,null,{"$f":"IFERROR(INDEX(감성사전!D:D,MATCH(J60,감성사전!C:C,0)),\"\")","v":""},{"$f":"IFERROR(INDEX(감성사전!B:B,MATCH(J60,감성사전!A:A,0)),\"\")","v":""}]
[null,null,null,null,null,null,null,null,null,null,{"$f":"IFERROR(INDEX(감성사전!D:D,MATCH(J61,감성사전!C:C,0)),\"\")","v":""},{"$f":"IFERROR(INDEX(감성사전!B:B,MATCH(J61,감성사전!A:A,0)),\"\")","v":""}]
[null,null,null,null,null,null,null,null,null,null,{"$f":"IFERROR(INDEX(감성사전!D:D,MATCH(J62,감성사전!C:C,0)),\"\")","v":""},{"$f":"IFERROR(INDEX(감성사전!B:B,MATCH(J62,감성사전!A:A,0)),\"\")","v":""}]
[null,null,null,null,null,null,null,null,null,null,{"$f":"IFERROR(INDEX(감성사전!D:D,MATCH(J63,감성사전!C:C,0)),\"\")","v":""},{"$f":"IFERROR(INDEX(감성사전!B:B,MATCH(J63,감성사전!A:A,0)),\"\")","v":""}]
[null,null,null,null,null,null,null,null,null,null,{"$f":"IFERROR(INDEX(감성사전!D:D,MATCH(J64,감성사전!C:C,0)),\"\")","v":""},{"$f":"IFERROR(INDEX(감성사전!B:B,MATCH(J64,감성사전!A:A,0)),\"\")","v":""}]
[null,null,null,null,null,null,null,null,null,null,{"$f":"IFERROR(INDEX(감성사전!D:D,MATCH(J65,감성사전!C:C,0)),\"\")","v":""},{"$f":"IFERROR(INDEX(감성사전!B:B,MATCH(J65,감성사전!A:A,0)),\"\")","v":""}]
[null,null,null,null,null,null,null,null,null,null,{"$f":"IFERROR(INDEX(감성사전!D:D,MATCH(J66,감성사전!C:C,0)),\"\")","v":""},{"$f":"IFERROR(INDEX(감성사전!B:B,MATCH(J66,감성사전!A:A,0)),\"\")","v":""}]
[null,null,null,null,null,null,null,null,null,null,{"$f":"IFERROR(INDEX(감성사전!D:D,MATCH(J67,감성사전!C:C,0)),\"\")","v":""},{"$f":"IFERROR(INDEX(감성사전!B:B,MATCH(J67,감성사전!A:A,0)),\"\")","v":""}]
[null,null,null,null,null,null,null,null,null,null,{"$f":"IFERROR(INDEX(감성사전!D:D,MATCH(J68,감성사전!C:C,0)),\"\")","v":""},{"$f":"IFERROR(INDEX(감성사전!B:B,MATCH(J68,감성사전!A:A,0)),\"\")","v":""}]

{"sheet":"감성사전","index":1,"n_rows":1,"n_cols":4,"rows_kept":1,"cut":false,"hidden":false,"merged":[]}
["부정단어","점수","긍정단어","점수"]